[Event "Live Chess"]
[Site "Chess.com"]
[Date "2023.05.21"]
[Round "-"]
[White "HoarseyHorsey"]
[Black "Biranidun"]
[Result "0-1"]
[WhiteElo "1447"]
[BlackElo "2539"]
[TimeControl "300"]
[EndTime "0:34:20 PDT"]
[Termination "Biranidun won by resignation"]

1. d4 {[%clk 0:04:58.9]} 1... Nf6 {[%clk 0:04:59.4]} 2. c4 {[%clk 0:04:58.3]}
2... g6 {[%clk 0:04:59]} 3. Nc3 {[%clk 0:04:57.7]} 3... Bg7 {[%clk 0:04:58.7]}
4. f3 {[%clk 0:04:57.3]} 4... d6 {[%clk 0:04:58.3]} 5. e4 {[%clk 0:04:56.8]}
5... O-O {[%clk 0:04:58.2]} 6. Be3 {[%clk 0:04:55.1]} 6... c5 {[%clk 0:04:57.6]}
7. d5 {[%clk 0:04:54.1]} 7... e6 {[%clk 0:04:56.8]} 8. Qd2 {[%clk 0:04:53.4]}
8... exd5 {[%clk 0:04:56.3]} 9. cxd5 {[%clk 0:04:53.3]} 9... a6 {[%clk
0:04:55.8]} 10. Nge2 {[%clk 0:04:52.3]} 10... b5 {[%clk 0:04:54.7]} 11. Ng3
{[%clk 0:04:50.9]} 11... b4 {[%clk 0:04:53.9]} 12. Nce2 {[%clk 0:04:50.1]} 12...
h5 {[%clk 0:04:52.7]} 13. h4 {[%clk 0:04:48.5]} 13... Nbd7 {[%clk 0:04:50.1]}
14. Bg5 {[%clk 0:04:46.1]} 14... Ne5 {[%clk 0:04:49]} 15. Nc1 {[%clk 0:04:37.1]}
15... a5 {[%clk 0:04:45.4]} 16. Nd3 {[%clk 0:04:36.2]} 16... Nc4 {[%clk
0:04:43.6]} 17. Qe2 {[%clk 0:04:33.9]} 17... Ba6 {[%clk 0:04:42.1]} 18. Qc2
{[%clk 0:04:27.5]} 18... Re8 {[%clk 0:04:37.6]} 19. Be2 {[%clk 0:04:26.4]} 19...
Qb6 {[%clk 0:04:29.3]} 20. O-O {[%clk 0:04:22.9]} 20... Nh7 {[%clk 0:04:28.2]}
21. Bf4 {[%clk 0:04:08.4]} 21... Bf6 {[%clk 0:04:25.9]} 22. b3 {[%clk
0:04:04.2]} 22... Na3 {[%clk 0:04:24.2]} 23. Qd2 {[%clk 0:03:59.5]} 23... c4+
{[%clk 0:04:21.1]} 24. Kh1 {[%clk 0:03:56.2]} 24... cxd3 {[%clk 0:04:19.9]} 25.
Bxd3 {[%clk 0:03:55.6]} 25... Bxd3 {[%clk 0:04:18]} 26. Qxd3 {[%clk 0:03:55.5]}
26... Bxa1 {[%clk 0:04:16.6]} 27. Rxa1 {[%clk 0:03:55.1]} 27... Rac8 {[%clk
0:04:15.6]} 28. Rd1 {[%clk 0:03:53.8]} 28... Rc3 {[%clk 0:04:11.7]} 29. Qd2
{[%clk 0:03:52.1]} 29... Rc2 {[%clk 0:04:08.7]} 30. Qe3 {[%clk 0:03:48.5]} 30...
Qxe3 {[%clk 0:04:07.6]} 31. Bxe3 {[%clk 0:03:48.4]} 31... Rxa2 {[%clk
0:04:05.8]} 32. Rc1 {[%clk 0:03:47]} 32... Rc2 {[%clk 0:04:04.7]} 33. Rxc2
{[%clk 0:03:45.4]} 33... Nxc2 {[%clk 0:04:04.6]} 0-1

[Event "Live Chess"]
[Site "Chess.com"]
[Date "2023.05.21"]
[Round "-"]
[White "Mugzwang"]
[Black "ChessClubLive"]
[Result "0-1"]
[WhiteElo "1511"]
[BlackElo "1759"]
[TimeControl "300"]
[EndTime "0:34:41 PDT"]
[Termination "ChessClubLive won on time"]

1. Nf3 {[%clk 0:04:58.8]} 1... Nc6 {[%clk 0:04:56.5]} 2. d4 {[%clk 0:04:55.5]}
2... d5 {[%clk 0:04:54.6]} 3. g3 {[%clk 0:04:53.7]} 3... g6 {[%clk 0:04:52.6]}
4. Bg2 {[%clk 0:04:52.7]} 4... Bg7 {[%clk 0:04:52.1]} 5. O-O {[%clk 0:04:50.9]}
5... Nf6 {[%clk 0:04:51.3]} 6. c4 {[%clk 0:04:37.5]} 6... dxc4 {[%clk
0:04:44.6]} 7. Nc3 {[%clk 0:04:30.3]} 7... Bg4 {[%clk 0:04:38.8]} 8. a3 {[%clk
0:04:13.9]} 8... Bxf3 {[%clk 0:04:37.3]} 9. Bxf3 {[%clk 0:04:10.3]} 9... Nxd4
{[%clk 0:04:33.5]} 10. Bxb7 {[%clk 0:04:00]} 10... Rb8 {[%clk 0:04:31]} 11. Bg2
{[%clk 0:03:59.7]} 11... Nb3 {[%clk 0:04:24.1]} 12. Rb1 {[%clk 0:03:32.6]} 12...
O-O {[%clk 0:04:19.5]} 13. Bf4 {[%clk 0:03:27.7]} 13... Qc8 {[%clk 0:04:08.4]}
14. Nd5 {[%clk 0:03:11]} 14... Nxd5 {[%clk 0:04:01.7]} 15. Bxd5 {[%clk
0:03:04.7]} 15... Rd8 {[%clk 0:03:55.9]} 16. Bxf7+ {[%clk 0:02:10.3]} 16... Kxf7
{[%clk 0:03:52.7]} 17. Qc2 {[%clk 0:02:09.8]} 17... e5 {[%clk 0:03:46.2]} 18.
Qxc4+ {[%clk 0:02:08.2]} 18... Qe6 {[%clk 0:03:36.5]} 19. Qxc7+ {[%clk
0:02:01.9]} 19... Kg8 {[%clk 0:03:09.2]} 20. Bg5 {[%clk 0:01:55.3]} 20... Rdc8
{[%clk 0:03:04]} 21. Qxa7 {[%clk 0:01:34.9]} 21... h6 {[%clk 0:03:01.5]} 22. Be3
{[%clk 0:01:28.8]} 22... Qf7 {[%clk 0:02:09.4]} 23. Qxf7+ {[%clk 0:01:07.5]}
23... Kxf7 {[%clk 0:02:07.6]} 24. Rfd1 {[%clk 0:01:05.9]} 24... Rd8 {[%clk
0:02:04.3]} 25. Ba7 {[%clk 0:00:47.2]} 25... Rbc8 {[%clk 0:01:48.9]} 26. Bb6
{[%clk 0:00:42.2]} 26... Rxd1+ {[%clk 0:01:43.9]} 27. Rxd1 {[%clk 0:00:40.6]}
27... Rc1 {[%clk 0:01:42.5]} 28. Rxc1 {[%clk 0:00:38.7]} 28... Nxc1 {[%clk
0:01:41.3]} 29. Kf1 {[%clk 0:00:34.5]} 29... e4 {[%clk 0:01:39.1]} 30. b4 {[%clk
0:00:27]} 30... Ke6 {[%clk 0:01:29.2]} 31. b5 {[%clk 0:00:22.7]} 31... Nb3
{[%clk 0:01:21.9]} 32. a4 {[%clk 0:00:19.1]} 32... Bd4 {[%clk 0:01:20.4]} 33.
Bxd4 {[%clk 0:00:17.7]} 33... Nxd4 {[%clk 0:01:19.3]} 34. b6 {[%clk 0:00:16]}
34... Kd6 {[%clk 0:01:16.8]} 35. a5 {[%clk 0:00:13.8]} 35... Kc6 {[%clk
0:01:15.7]} 36. Kg2 {[%clk 0:00:12.2]} 36... Nb3 {[%clk 0:01:12.4]} 37. f3
{[%clk 0:00:09.9]} 37... exf3+ {[%clk 0:01:05.6]} 38. exf3 {[%clk 0:00:08.7]}
38... Nxa5 {[%clk 0:01:04.5]} 39. Kf2 {[%clk 0:00:07.1]} 39... Kxb6 {[%clk
0:01:03.6]} 40. Ke3 {[%clk 0:00:06.7]} 40... Kc6 {[%clk 0:01:02.5]} 41. Kf4
{[%clk 0:00:05.6]} 41... Kd6 {[%clk 0:00:59.7]} 42. h4 {[%clk 0:00:05.1]} 42...
Ke6 {[%clk 0:00:52.1]} 43. g4 {[%clk 0:00:04.4]} 43... Nc4 {[%clk 0:00:44.7]}
44. g5 {[%clk 0:00:03.6]} 44... h5 {[%clk 0:00:43.4]} 45. Ke4 {[%clk 0:00:00.5]}
45... Nd6+ {[%clk 0:00:40.3]} 0-1

[Event "Live Chess"]
[Site "Chess.com"]
[Date "2023.05.21"]
[Round "-"]
[White "LiamClery2020"]
[Black "JohanKjeldahl"]
[Result "1/2-1/2"]
[WhiteElo "2027"]
[BlackElo "1892"]
[TimeControl "300"]
[EndTime "0:34:43 PDT"]
[Termination "Game drawn by agreement"]

1. e4 {[%clk 0:04:58.9]} 1... c5 {[%clk 0:04:57.9]} 2. Nf3 {[%clk 0:04:58]} 2...
e6 {[%clk 0:04:56.8]} 3. c3 {[%clk 0:04:54.8]} 3... Nc6 {[%clk 0:04:54.8]} 4.
Bb5 {[%clk 0:04:52.1]} 4... Nge7 {[%clk 0:04:52.1]} 5. Bxc6 {[%clk 0:04:50.9]}
5... Nxc6 {[%clk 0:04:49.9]} 6. O-O {[%clk 0:04:50.8]} 6... d5 {[%clk
0:04:47.8]} 7. e5 {[%clk 0:04:49.7]} 7... Qc7 {[%clk 0:04:44.1]} 8. d4 {[%clk
0:04:48.7]} 8... cxd4 {[%clk 0:04:41.8]} 9. cxd4 {[%clk 0:04:48.6]} 9... Be7
{[%clk 0:04:40.9]} 10. Nc3 {[%clk 0:04:47.4]} 10... a6 {[%clk 0:04:38.7]} 11.
Bg5 {[%clk 0:04:46.4]} 11... O-O {[%clk 0:04:36.8]} 12. Bxe7 {[%clk 0:04:43.2]}
12... Qxe7 {[%clk 0:04:33.6]} 13. Rc1 {[%clk 0:04:40.9]} 13... Bd7 {[%clk
0:04:30.5]} 14. Qd3 {[%clk 0:04:38.7]} 14... Rac8 {[%clk 0:04:26.2]} 15. a3
{[%clk 0:04:37.4]} 15... b5 {[%clk 0:04:21.5]} 16. Ne2 {[%clk 0:04:32.8]} 16...
Na5 {[%clk 0:04:18.1]} 17. Rxc8 {[%clk 0:04:30.7]} 17... Rxc8 {[%clk 0:04:15.8]}
18. Rc1 {[%clk 0:04:30.2]} 18... Rxc1+ {[%clk 0:04:12.6]} 19. Nxc1 {[%clk
0:04:30]} 19... h6 {[%clk 0:04:06.4]} 20. Nd2 {[%clk 0:04:24.8]} 20... Nc4
{[%clk 0:04:04.6]} 21. Nxc4 {[%clk 0:04:22.6]} 21... dxc4 {[%clk 0:04:01.5]} 22.
Qe4 {[%clk 0:04:18.9]} 22... Qe8 {[%clk 0:03:57.3]} 23. Qb7 {[%clk 0:04:13.1]}
23... Qc8 {[%clk 0:03:53.5]} 24. Qxc8+ {[%clk 0:04:08.4]} 24... Bxc8 {[%clk
0:03:52.1]} 25. Kf1 {[%clk 0:04:05.6]} 25... Kf8 {[%clk 0:03:50.7]} 26. Ke2
{[%clk 0:04:04.7]} 26... Ke7 {[%clk 0:03:48.5]} 27. Ke3 {[%clk 0:04:04.1]} 27...
Bb7 {[%clk 0:03:47.3]} 28. g3 {[%clk 0:04:03.3]} 28... g5 {[%clk 0:03:45]} 29.
Ne2 {[%clk 0:04:00.4]} 29... f5 {[%clk 0:03:42.2]} 30. f4 {[%clk 0:03:59.1]}
30... g4 {[%clk 0:03:39.5]} 1/2-1/2

[Event "Live Chess"]
[Site "Chess.com"]
[Date "2023.05.21"]
[Round "-"]
[White "diana21strabt"]
[Black "matt1979"]
[Result "1-0"]
[WhiteElo "1712"]
[BlackElo "1530"]
[TimeControl "300"]
[EndTime "0:34:48 PDT"]
[Termination "diana21strabt won by checkmate"]

1. e4 {[%clk 0:04:58.4]} 1... c5 {[%clk 0:04:57.5]} 2. Nf3 {[%clk 0:04:57.2]}
2... Nc6 {[%clk 0:04:56.1]} 3. d4 {[%clk 0:04:56.5]} 3... cxd4 {[%clk
0:04:55.2]} 4. Nxd4 {[%clk 0:04:55.8]} 4... Nf6 {[%clk 0:04:54]} 5. Nc3 {[%clk
0:04:55.4]} 5... e5 {[%clk 0:04:52.8]} 6. Ndb5 {[%clk 0:04:54.2]} 6... d6 {[%clk
0:04:51.8]} 7. Bg5 {[%clk 0:04:52.6]} 7... a6 {[%clk 0:04:48.2]} 8. Na3 {[%clk
0:04:51.5]} 8... b5 {[%clk 0:04:47.2]} 9. Nd5 {[%clk 0:04:49.6]} 9... Be7 {[%clk
0:04:44.9]} 10. Bxf6 {[%clk 0:04:48.7]} 10... Bxf6 {[%clk 0:04:40.8]} 11. c3
{[%clk 0:04:47.7]} 11... O-O {[%clk 0:04:37]} 12. Nc2 {[%clk 0:04:46.2]} 12...
Be6 {[%clk 0:04:29.8]} 13. Nce3 {[%clk 0:04:40.6]} 13... Be7 {[%clk 0:04:22.5]}
14. h4 {[%clk 0:04:36.3]} 14... h6 {[%clk 0:04:15.7]} 15. Nxe7+ {[%clk
0:04:29.9]} 15... Qxe7 {[%clk 0:04:12.8]} 16. Nd5 {[%clk 0:04:28.3]} 16... Bxd5
{[%clk 0:04:09.9]} 17. exd5 {[%clk 0:04:27.1]} 17... Nb8 {[%clk 0:03:59.3]} 18.
Bd3 {[%clk 0:04:25.4]} 18... Nd7 {[%clk 0:03:57.5]} 19. Qg4 {[%clk 0:04:17.1]}
19... Nf6 {[%clk 0:03:54.6]} 20. Qf5 {[%clk 0:04:14.7]} 20... g6 {[%clk
0:03:46.6]} 21. Qh3 {[%clk 0:04:00.3]} 21... Nxd5 {[%clk 0:03:42.6]} 22. Be4
{[%clk 0:03:53.4]} 22... Nf4 {[%clk 0:03:39.8]} 23. Qe3 {[%clk 0:03:49.2]} 23...
Rad8 {[%clk 0:03:34.6]} 24. g3 {[%clk 0:03:44.8]} 24... Ne6 {[%clk 0:03:27.4]}
25. Qxh6 {[%clk 0:03:43]} 25... Qf6 {[%clk 0:03:16.7]} 26. h5 {[%clk 0:03:37.7]}
26... Ng5 {[%clk 0:02:55.1]} 27. hxg6 {[%clk 0:03:26.1]} 27... fxg6 {[%clk
0:02:48.3]} 28. Qxg6+ {[%clk 0:03:14.3]} 28... Qxg6 {[%clk 0:02:45.4]} 29. Bxg6
{[%clk 0:03:13.1]} 29... Nf3+ {[%clk 0:02:35]} 30. Ke2 {[%clk 0:03:09.3]} 30...
Ng5 {[%clk 0:02:29.6]} 31. Rad1 {[%clk 0:03:05.1]} 31... Rf6 {[%clk 0:02:26.8]}
32. Bh5 {[%clk 0:02:50.2]} 32... Rdf8 {[%clk 0:02:23.6]} 33. Rh2 {[%clk
0:02:38.5]} 33... Ne4 {[%clk 0:02:17.7]} 34. f3 {[%clk 0:02:28.5]} 34... Nxg3+
{[%clk 0:02:15.7]} 35. Kf2 {[%clk 0:02:27.4]} 35... Nxh5 {[%clk 0:02:13]} 36.
Rxh5 {[%clk 0:02:24.7]} 36... Rxf3+ {[%clk 0:02:11.8]} 37. Ke2 {[%clk
0:02:23.1]} 37... Rf2+ {[%clk 0:02:10.2]} 38. Kd3 {[%clk 0:02:21.5]} 38... Rxb2
{[%clk 0:01:48.8]} 39. Rg1+ {[%clk 0:02:20]} 39... Kf7 {[%clk 0:01:47.2]} 40.
Rh7+ {[%clk 0:02:14.5]} 40... Ke8 {[%clk 0:01:44.7]} 41. Rgg7 {[%clk 0:02:08.7]}
41... Rf3+ {[%clk 0:01:42.8]} 42. Ke4 {[%clk 0:02:06.5]} 42... Rbf2 {[%clk
0:01:35.7]} 43. Re7+ {[%clk 0:02:03.5]} 43... Kf8 {[%clk 0:01:29.8]} 44. Rd7
{[%clk 0:02:00.7]} 44... Rf4+ {[%clk 0:01:27]} 45. Kd5 {[%clk 0:01:58.1]} 45...
Rd2+ {[%clk 0:01:24.6]} 46. Ke6 {[%clk 0:01:56.5]} 46... Kg8 {[%clk 0:01:15.6]}
47. Rhg7+ {[%clk 0:01:54.1]} 47... Kh8 {[%clk 0:01:13.7]} 48. Rge7 {[%clk
0:01:52.2]} 48... Rf8 {[%clk 0:01:08.7]} 49. Rh7+ {[%clk 0:01:50.8]} 49... Kg8
{[%clk 0:01:06.2]} 50. Rdg7# {[%clk 0:01:49.5]} 1-0

[Event "Live Chess"]
[Site "Chess.com"]
[Date "2023.05.21"]
[Round "-"]
[White "BJAW87"]
[Black "CroasArRheun"]
[Result "1/2-1/2"]
[WhiteElo "1448"]
[BlackElo "1806"]
[TimeControl "300"]
[EndTime "0:34:49 PDT"]
[Termination "Game drawn - insufficient material"]

1. e4 {[%clk 0:04:58.5]} 1... e5 {[%clk 0:04:59]} 2. Nc3 {[%clk 0:04:57.9]} 2...
Nf6 {[%clk 0:04:57.8]} 3. f4 {[%clk 0:04:57.1]} 3... d5 {[%clk 0:04:56.9]} 4.
fxe5 {[%clk 0:04:56.3]} 4... Nxe4 {[%clk 0:04:55.8]} 5. Qf3 {[%clk 0:04:55.4]}
5... Nxc3 {[%clk 0:04:54.4]} 6. bxc3 {[%clk 0:04:55.3]} 6... Qh4+ {[%clk
0:04:53]} 7. g3 {[%clk 0:04:48.6]} 7... Qe4+ {[%clk 0:04:51.9]} 8. Qxe4 {[%clk
0:04:47.3]} 8... dxe4 {[%clk 0:04:51.8]} 9. Bg2 {[%clk 0:04:38.6]} 9... Bf5
{[%clk 0:04:45.5]} 10. Ne2 {[%clk 0:04:27.8]} 10... Nd7 {[%clk 0:04:39.7]} 11.
Nd4 {[%clk 0:04:15.8]} 11... Bg6 {[%clk 0:04:34.7]} 12. e6 {[%clk 0:04:14.9]}
12... fxe6 {[%clk 0:04:30.6]} 13. Nxe6 {[%clk 0:04:14.8]} 13... c6 {[%clk
0:04:23.9]} 14. Nc7+ {[%clk 0:04:13.1]} 14... Ke7 {[%clk 0:04:20.9]} 15. Nxa8
{[%clk 0:04:12.4]} 15... Kd6 {[%clk 0:04:16.6]} 16. Ba3+ {[%clk 0:04:09.2]}
16... Ke6 {[%clk 0:04:13.4]} 17. Bxf8 {[%clk 0:04:08.5]} 17... Rxf8 {[%clk
0:04:12.9]} 18. Nc7+ {[%clk 0:04:07.9]} 18... Kd6 {[%clk 0:04:10.8]} 19. Na6
{[%clk 0:03:56.7]} 19... bxa6 {[%clk 0:04:09.1]} 20. Rf1 {[%clk 0:03:49.1]}
20... Rb8 {[%clk 0:04:05.6]} 21. Ke2 {[%clk 0:03:40]} 21... Rb2 {[%clk
0:04:02.2]} 22. Rfc1 {[%clk 0:03:36.7]} 22... e3 {[%clk 0:03:57.3]} 23. d3
{[%clk 0:03:29.7]} 23... Ne5 {[%clk 0:03:35.4]} 24. Kxe3 {[%clk 0:03:09.9]}
24... Ng4+ {[%clk 0:03:31.9]} 25. Kd2 {[%clk 0:02:57.6]} 25... Nxh2 {[%clk
0:03:28.9]} 26. a4 {[%clk 0:02:53.6]} 26... Ng4 {[%clk 0:03:22.2]} 27. Rcb1
{[%clk 0:02:48]} 27... Rb6 {[%clk 0:03:10.4]} 28. Rxb6 {[%clk 0:02:46.4]} 28...
axb6 {[%clk 0:03:10.3]} 29. Rb1 {[%clk 0:02:41]} 29... b5 {[%clk 0:03:05.9]} 30.
axb5 {[%clk 0:02:40.2]} 30... axb5 {[%clk 0:03:03.9]} 31. Ra1 {[%clk 0:02:29.6]}
31... Bf5 {[%clk 0:02:50.1]} 32. Ra7 {[%clk 0:02:15.7]} 32... g6 {[%clk
0:02:48.2]} 33. Rxh7 {[%clk 0:02:09.9]} 33... Nf6 {[%clk 0:02:46.3]} 34. Ra7
{[%clk 0:02:08.5]} 34... Ng4 {[%clk 0:02:44.1]} 35. Ra6 {[%clk 0:02:04.6]} 35...
Bd7 {[%clk 0:02:43]} 36. Bh3 {[%clk 0:01:50.2]} 36... Ne5 {[%clk 0:02:39.2]} 37.
Bxd7 {[%clk 0:01:48.6]} 37... Nxd7 {[%clk 0:02:39.1]} 38. d4 {[%clk 0:01:42.4]}
38... Nf6 {[%clk 0:02:35.9]} 39. Kd3 {[%clk 0:01:34.6]} 39... Nh5 {[%clk
0:02:32.4]} 40. g4 {[%clk 0:01:32]} 40... Nf4+ {[%clk 0:02:31.5]} 41. Ke4 {[%clk
0:01:23.7]} 41... Nd5 {[%clk 0:02:29.9]} 42. Kd3 {[%clk 0:01:18.9]} 42... Nf4+
{[%clk 0:02:28.5]} 43. Kd2 {[%clk 0:01:16.4]} 43... Nd5 {[%clk 0:02:23.9]} 44.
Ra8 {[%clk 0:01:15.1]} 44... Nf6 {[%clk 0:02:21.9]} 45. Rf8 {[%clk 0:01:13.4]}
45... Nxg4 {[%clk 0:02:12.1]} 46. Rg8 {[%clk 0:01:09.2]} 46... Nf2 {[%clk
0:02:06.8]} 47. Rxg6+ {[%clk 0:01:04.9]} 47... Kd5 {[%clk 0:02:05.2]} 48. Rg5+
{[%clk 0:01:01.8]} 48... Kd6 {[%clk 0:02:03.6]} 49. Rg8 {[%clk 0:00:57.7]} 49...
Ne4+ {[%clk 0:02:02.3]} 50. Kd3 {[%clk 0:00:56.1]} 50... Nf6 {[%clk 0:02:01.8]}
51. Rd8+ {[%clk 0:00:53.5]} 51... Kc7 {[%clk 0:02:01.3]} 52. Rf8 {[%clk
0:00:50]} 52... Nd5 {[%clk 0:02:00.3]} 53. c4 {[%clk 0:00:48.5]} 53... bxc4+
{[%clk 0:01:46.2]} 54. Kxc4 {[%clk 0:00:48.4]} 54... Nb6+ {[%clk 0:01:45.4]} 55.
Kd3 {[%clk 0:00:45.6]} 55... Kd6 {[%clk 0:01:43.9]} 56. c4 {[%clk 0:00:44.2]}
56... Nd7 {[%clk 0:01:42.5]} 57. Rh8 {[%clk 0:00:42]} 57... c5 {[%clk
0:01:40.5]} 58. dxc5+ {[%clk 0:00:40.8]} 58... Nxc5+ {[%clk 0:01:36.4]} 59. Kd4
{[%clk 0:00:40]} 59... Ne6+ {[%clk 0:01:35.5]} 60. Kc3 {[%clk 0:00:35.7]} 60...
Kc5 {[%clk 0:01:32.7]} 61. Rh5+ {[%clk 0:00:33.4]} 61... Kc6 {[%clk 0:01:30.7]}
62. Kb4 {[%clk 0:00:32.4]} 62... Nc7 {[%clk 0:01:28.9]} 63. Rc5+ {[%clk
0:00:31.2]} 63... Kb6 {[%clk 0:01:27.6]} 64. Rxc7 {[%clk 0:00:29.1]} 64... Kxc7
{[%clk 0:01:26.3]} 65. Kc5 {[%clk 0:00:29]} 65... Kb7 {[%clk 0:01:25.3]} 66. Kd6
{[%clk 0:00:27]} 66... Kc8 {[%clk 0:01:24.5]} 67. c5 {[%clk 0:00:24.9]} 67...
Kd8 {[%clk 0:01:22.1]} 68. Kc6 {[%clk 0:00:20.4]} 68... Kc8 {[%clk 0:01:21.2]}
69. Kb6 {[%clk 0:00:19.3]} 69... Kb8 {[%clk 0:01:14.1]} 70. c6 {[%clk
0:00:16.5]} 70... Kc8 {[%clk 0:01:12.5]} 71. Kc5 {[%clk 0:00:13.8]} 71... Kc7
{[%clk 0:01:11.8]} 72. Kb5 {[%clk 0:00:13.2]} 72... Kc8 {[%clk 0:01:10.5]} 73.
Kb6 {[%clk 0:00:12.5]} 73... Kb8 {[%clk 0:01:09.2]} 74. c7+ {[%clk 0:00:09.6]}
74... Kc8 {[%clk 0:01:08.4]} 75. Ka7 {[%clk 0:00:07]} 75... Kxc7 {[%clk
0:01:07.6]} 1/2-1/2

[Event "Live Chess"]
[Site "Chess.com"]
[Date "2023.05.21"]
[Round "-"]
[White "terrub10"]
[Black "Hacker_2009"]
[Result "0-1"]
[WhiteElo "570"]
[BlackElo "1933"]
[TimeControl "300"]
[EndTime "0:35:03 PDT"]
[Termination "Hacker_2009 won by checkmate"]

1. d4 {[%clk 0:04:57.4]} 1... Nf6 {[%clk 0:04:57.5]} 2. Nc3 {[%clk 0:04:51.3]}
2... e6 {[%clk 0:04:56.7]} 3. Nf3 {[%clk 0:04:49.2]} 3... d5 {[%clk 0:04:56.3]}
4. Bg5 {[%clk 0:04:45.8]} 4... Be7 {[%clk 0:04:55]} 5. Bxf6 {[%clk 0:04:37.6]}
5... Bxf6 {[%clk 0:04:53.8]} 6. e4 {[%clk 0:04:36.7]} 6... O-O {[%clk
0:04:51.8]} 7. exd5 {[%clk 0:04:29.9]} 7... exd5 {[%clk 0:04:49.7]} 8. Nxd5
{[%clk 0:04:26.5]} 8... Qxd5 {[%clk 0:04:47.8]} 9. b3 {[%clk 0:04:20.7]} 9... c5
{[%clk 0:04:45.1]} 10. Bc4 {[%clk 0:04:18.7]} 10... Re8+ {[%clk 0:04:43.1]} 11.
Kd2 {[%clk 0:04:11.9]} 11... Qf5 {[%clk 0:04:35]} 12. Nh4 {[%clk 0:04:09.1]}
12... Bxh4 {[%clk 0:04:31.6]} 13. g3 {[%clk 0:03:57.2]} 13... Bg5+ {[%clk
0:04:29.4]} 14. f4 {[%clk 0:03:52.5]} 14... Bf6 {[%clk 0:04:27.8]} 15. h3 {[%clk
0:03:49]} 15... Bxd4 {[%clk 0:04:26.3]} 16. g4 {[%clk 0:03:47.8]} 16... Qxf4+
{[%clk 0:04:24.5]} 17. Kd3 {[%clk 0:03:38.9]} 17... Qe3# {[%clk 0:04:23.5]} 0-1

[Event "Live Chess"]
[Site "Chess.com"]
[Date "2023.05.21"]
[Round "-"]
[White "Denz14"]
[Black "hturner40"]
[Result "0-1"]
[WhiteElo "1022"]
[BlackElo "1775"]
[TimeControl "300"]
[EndTime "0:35:08 PDT"]
[Termination "hturner40 won by resignation"]

1. e4 {[%clk 0:04:47.8]} 1... Nc6 {[%clk 0:04:58.8]} 2. Nf3 {[%clk 0:04:39.6]}
2... e5 {[%clk 0:04:57.7]} 3. Bc4 {[%clk 0:04:38.1]} 3... Nf6 {[%clk 0:04:55.3]}
4. Nc3 {[%clk 0:04:35.3]} 4... Nxe4 {[%clk 0:04:52.4]} 5. Nxe4 {[%clk
0:04:33.3]} 5... d5 {[%clk 0:04:50.2]} 6. Bxd5 {[%clk 0:04:29.1]} 6... Qxd5
{[%clk 0:04:49.1]} 7. Nc3 {[%clk 0:04:26.5]} 7... Qd8 {[%clk 0:04:46.8]} 8. O-O
{[%clk 0:04:25.2]} 8... Bd6 {[%clk 0:04:44.6]} 9. Re1 {[%clk 0:04:23]} 9... O-O
{[%clk 0:04:42.9]} 10. d3 {[%clk 0:04:20]} 10... Bg4 {[%clk 0:04:40]} 11. Bg5
{[%clk 0:04:18.4]} 11... f6 {[%clk 0:04:31.2]} 12. Be3 {[%clk 0:04:13.1]} 12...
f5 {[%clk 0:04:21.6]} 13. h3 {[%clk 0:04:11.5]} 13... Bh5 {[%clk 0:04:19.4]} 14.
Bg5 {[%clk 0:03:59]} 14... Bxf3 {[%clk 0:04:09.6]} 15. Bxd8 {[%clk 0:03:54.9]}
15... Bxd1 {[%clk 0:04:07.8]} 16. Raxd1 {[%clk 0:03:42.4]} 16... Raxd8 {[%clk
0:04:03.3]} 17. Nb5 {[%clk 0:03:33.6]} 17... a6 {[%clk 0:03:59.6]} 18. Nxd6
{[%clk 0:03:32.1]} 18... cxd6 {[%clk 0:03:58.5]} 0-1

[Event "Live Chess"]
[Site "Chess.com"]
[Date "2023.05.21"]
[Round "-"]
[White "Leonid_Starozhilov"]
[Black "SupremeTactician"]
[Result "1-0"]
[WhiteElo "2648"]
[BlackElo "2305"]
[TimeControl "300"]
[EndTime "0:35:14 PDT"]
[Termination "Leonid_Starozhilov won by resignation"]

1. e4 {[%clk 0:04:58.8]} 1... e5 {[%clk 0:04:58.7]} 2. Nf3 {[%clk 0:04:56.4]}
2... Nc6 {[%clk 0:04:58.1]} 3. Bb5 {[%clk 0:04:55.5]} 3... a6 {[%clk 0:04:57.4]}
4. Bxc6 {[%clk 0:04:54.3]} 4... dxc6 {[%clk 0:04:56.6]} 5. h3 {[%clk 0:04:54.1]}
5... f6 {[%clk 0:04:56.1]} 6. d4 {[%clk 0:04:53.2]} 6... exd4 {[%clk 0:04:55.4]}
7. Qxd4 {[%clk 0:04:53.1]} 7... Qxd4 {[%clk 0:04:54.6]} 8. Nxd4 {[%clk 0:04:53]}
8... Bd6 {[%clk 0:04:54.4]} 9. Nc3 {[%clk 0:04:52.2]} 9... Ne7 {[%clk
0:04:53.9]} 10. Be3 {[%clk 0:04:51.5]} 10... O-O {[%clk 0:04:53]} 11. O-O-O
{[%clk 0:04:50.8]} 11... c5 {[%clk 0:04:51]} 12. Nde2 {[%clk 0:04:49.6]} 12...
Be6 {[%clk 0:04:48.7]} 13. Nf4 {[%clk 0:04:47.1]} 13... Bf7 {[%clk 0:04:47.8]}
14. Nfd5 {[%clk 0:04:46.4]} 14... Nxd5 {[%clk 0:04:45.9]} 15. Nxd5 {[%clk
0:04:45]} 15... b6 {[%clk 0:04:45.3]} 16. Nxb6 {[%clk 0:04:42.9]} 16... cxb6
{[%clk 0:04:31.9]} 17. Rxd6 {[%clk 0:04:41.2]} 17... Rab8 {[%clk 0:04:31.8]} 18.
Rhd1 {[%clk 0:04:37.8]} 18... Rfe8 {[%clk 0:04:30.8]} 19. f3 {[%clk 0:04:31]}
19... f5 {[%clk 0:04:30.1]} 20. Rd7 {[%clk 0:04:15.4]} 20... fxe4 {[%clk
0:04:25.8]} 21. f4 {[%clk 0:04:14.7]} 21... Be6 {[%clk 0:04:13.8]} 22. Ra7
{[%clk 0:04:11.5]} 22... Red8 {[%clk 0:04:13.2]} 23. Rxd8+ {[%clk 0:04:09.1]}
23... Rxd8 {[%clk 0:04:12.4]} 24. Rxa6 {[%clk 0:04:08.6]} 24... Bc4 {[%clk
0:03:24.6]} 25. Rxb6 {[%clk 0:04:06]} 25... Bf1 {[%clk 0:03:23.9]} 26. a4 {[%clk
0:03:52.9]} 26... Bxg2 {[%clk 0:03:18.7]} 27. a5 {[%clk 0:03:51.3]} 27... Bxh3
{[%clk 0:03:16.2]} 28. a6 {[%clk 0:03:49.7]} 28... Bg4 {[%clk 0:03:11.9]} 29. b3
{[%clk 0:03:47.4]} 29... Be6 {[%clk 0:03:01.3]} 30. Rxe6 {[%clk 0:03:45.6]} 1-0

[Event "Live Chess"]
[Site "Chess.com"]
[Date "2023.05.21"]
[Round "-"]
[White "Doge_Dandolo"]
[Black "mattihelenius2"]
[Result "1-0"]
[WhiteElo "1898"]
[BlackElo "493"]
[TimeControl "300"]
[EndTime "0:35:21 PDT"]
[Termination "Doge_Dandolo won by resignation"]

1. Nf3 {[%clk 0:04:57]} 1... d5 {[%clk 0:04:55.7]} 2. c4 {[%clk 0:04:56.3]} 2...
Nf6 {[%clk 0:04:46.8]} 3. cxd5 {[%clk 0:04:54.6]} 3... Nxd5 {[%clk 0:04:45.1]}
4. e4 {[%clk 0:04:52.5]} 4... Nf4 {[%clk 0:04:42.3]} 5. d4 {[%clk 0:04:50.9]}
5... Bg4 {[%clk 0:04:38.4]} 6. Bxf4 {[%clk 0:04:48.2]} 6... Bxf3 {[%clk
0:04:36.7]} 7. gxf3 {[%clk 0:04:46.5]} 7... Nc6 {[%clk 0:04:35.6]} 8. Be3 {[%clk
0:04:41.9]} 8... e6 {[%clk 0:04:31.7]} 9. Bb5 {[%clk 0:04:39.5]} 9... Bb4+
{[%clk 0:04:30.7]} 10. Nc3 {[%clk 0:04:37.5]} 10... a6 {[%clk 0:04:27.7]} 11.
Bxc6+ {[%clk 0:04:33.8]} 11... bxc6 {[%clk 0:04:26]} 12. Qc2 {[%clk 0:04:32]}
12... Bxc3+ {[%clk 0:04:25.3]} 13. Qxc3 {[%clk 0:04:29.5]} 13... Rb8 {[%clk
0:04:23.7]} 14. b3 {[%clk 0:04:27.9]} 14... O-O {[%clk 0:04:21.2]} 15. O-O
{[%clk 0:04:25.3]} 15... c5 {[%clk 0:04:15.6]} 16. Qxc5 {[%clk 0:04:21.9]} 16...
Rb5 {[%clk 0:04:12.6]} 17. Qc3 {[%clk 0:04:17.5]} 17... Qg5+ {[%clk 0:03:58.4]}
18. Bxg5 {[%clk 0:04:15.5]} 1-0